bitfinex/quotes_ETHUSD_20251006
["timestamp","ask_amount","ask_price","bid_price","bid_amount"]
[1759770557987,13.9974,4684.2,4683.5,2.4]
[1759770558186,2.11294,4684.1,4683.6,6.565826]
[1759770558409,13.5302,4684.2,4683.8,2.4]
[1759770558609,12.3,4684.2,4684.0,2.4]
[1759770558815,12.3,4684.2,4684.1,35.5331365]
[1759770559130,13.53,4684.2,4684.1,35.80709971]
[1759770559427,13.53,4684.2,4684.1,37.93909971]
[1759770559599,13.53,4684.2,4684.1,40.18038154]
[1759770559797,13.53,4684.2,4684.1,38.04549971]
[1759770560028,13.53,4684.2,4684.1,35.91349971]
[1759770560587,14.76,4684.2,4684.1,35.91349971]
[1759770560936,14.76,4684.2,4684.1,38.04549971]
[1759770562030,15.99,4684.2,4684.1,38.04549971]
[1759770562504,15.99,4684.2,4684.1,35.16759971]
[1759770562708,15.99,4684.2,4684.1,39.79859971]
[1759770562931,15.99,4684.2,4684.1,40.26349971]
[1759770563139,15.99,4684.2,4684.1,40.15709971]
[1759770563305,17.22,4684.2,4684.1,39.69219971]
[1759770563500,17.22,4684.2,4684.1,42.29198154]
[1759770563932,17.22,4684.2,4684.1,40.15709971]
[1759770564442,17.22,4684.2,4684.1,42.29198154]
[1759770564628,18.45,4684.2,4684.1,42.29198154]
[1759770566035,18.45,4684.2,4684.1,42.93224584]
[1759770566213,19.68,4684.2,4684.1,42.93224584]
[1759770566732,19.68,4684.2,4684.1,43.56584584]
[1759770566934,17.00217074,4684.2,4684.1,45.69880324]
[1759770567112,17.00217074,4684.2,4684.1,41.19417378]
[1759770567432,17.00217074,4684.2,4684.1,43.80887378]
[1759770567645,18.23217074,4684.2,4684.1,43.80887378]
[1759770569225,19.46217074,4684.2,4684.1,43.80887378]
[1759770570917,20.69217074,4684.2,4684.1,43.80887378]
[1759770571646,20.69417074,4684.2,4684.1,43.80887378]
[1759770572035,20.69417074,4684.2,4684.1,44.02277378]
[1759770572541,21.92417074,4684.2,4684.1,44.02277378]
[1759770573042,21.92417074,4684.2,4684.1,44.12917378]
[1759770573633,21.92417074,4684.2,4684.1,43.91527378]
[1759770573936,20.47634148,4684.2,4684.1,43.91527378]
[1759770574239,13.47979119,4684.2,4684.1,43.91527378]
[1759770575260,13.47979119,4684.2,4684.1,43.91427378]
[1759770575543,14.70979119,4684.2,4684.1,43.91427378]
[1759770576040,5.03541164,4684.2,4684.1,43.91427378]
[1759770576345,5.03541164,4684.2,4684.1,44.12817378]
[1759770577162,6.26541164,4684.2,4684.1,44.12817378]
[1759770578346,6.26541164,4684.2,4684.1,43.90577378]
[1759770578518,7.49541164,4684.2,4684.1,43.90577378]
[1759770579661,7.29551164,4684.2,4684.1,43.90577378]
[1759770579835,8.52551164,4684.2,4684.1,43.90577378]
[1759770580018,3.69000064,4684.2,4684.1,43.90577378]
[1759770581346,3.69000064,4684.2,4684.1,43.44937378]
[1759770581546,3.69000064,4684.2,4684.1,38.81937378]
[1759770581547,4.92000064,4684.2,4684.1,38.81937378]
[1759770581747,4.92000064,4684.2,4684.1,39.88578263]
[1759770581949,4.87000064,4684.2,4684.1,12.46634584]
[1759770582347,4.87000064,4684.2,4684.1,43.09994584]
[1759770582948,6.10000064,4684.2,4684.1,13.09994584]
[1759770583354,6.10000064,4684.2,4684.1,43.09994584]
[1759770583720,6.10000064,4684.2,4684.1,43.55634584]
[1759770584455,7.33000064,4684.2,4684.1,43.55634584]
[1759770585353,6.8450962,4684.2,4684.1,43.55634584]
[1759770585655,6.8450962,4684.2,4684.1,43.09994584]
[1759770585856,8.0750962,4684.2,4684.1,43.09994584]
[1759770586355,8.0750962,4684.2,4684.1,38.46994584]
[1759770586557,8.0750962,4684.2,4684.1,45.74859919]
[1759770586853,8.0750962,4684.2,4684.1,41.11859919]
[1759770587050,8.0750962,4684.2,4684.1,45.74859919]
[1759770587229,9.3050962,4684.2,4684.1,45.74859919]
[1759770588167,9.3050962,4684.2,4684.1,43.09994584]
[1759770588333,5.27664205,4684.2,4684.1,43.09994584]
[1759770588534,6.50664205,4684.2,4684.1,43.09994584]
[1759770589232,6.50664205,4684.2,4684.1,45.75507995]
[1759770589621,6.50664205,4684.2,4684.1,43.09994584]
[1759770590027,7.73664205,4684.2,4684.1,38.46994584]
[1759770590257,7.73664205,4684.2,4684.1,43.09894584]
[1759770590828,7.73664205,4684.2,4684.1,32.27585263]
[1759770591050,8.17124205,4684.2,4684.1,30.39721427]
[1759770591252,8.17124205,4684.2,4684.1,38.4532261]
[1759770591455,9.40124205,4684.2,4684.1,40.6911008]
[1759770591656,9.40124205,4684.2,4684.1,37.6575008]
[1759770591862,9.40124205,4684.2,4684.1,37.7639008]
[1759770592057,9.40124205,4684.2,4684.1,42.29878263]
[1759770592240,8.96864205,4684.2,4684.1,35.5349008]
[1759770592562,9.40124205,4684.2,4684.1,40.1639008]
[1759770593177,10.63124205,4684.2,4684.1,40.1639008]
[1759770593340,10.63124205,4684.2,4684.1,35.5349008]
[1759770593673,10.63124205,4684.2,4684.1,39.5236365]
[1759770594036,10.19864205,4684.2,4684.1,41.65851833]
[1759770594478,11.42864205,4684.2,4684.1,41.93248154]
[1759770594936,11.42864205,4684.2,4684.1,39.79759971]
[1759770595135,11.42864205,4684.2,4684.1,11.93248154]
[1759770595335,11.42864205,4684.2,4684.1,41.93248154]
[1759770595874,11.42864205,4684.2,4684.1,39.79759971]
[1759770596169,12.65864205,4684.2,4684.1,9.79759971]
[1759770596367,12.65864205,4684.2,4684.1,39.79859971]
[1759770596548,12.65864205,4684.2,4684.1,39.69219971]
[1759770597287,12.65864205,4684.2,4684.1,35.06219971]
[1759770597491,13.88864205,4684.2,4684.1,40.33246264]
[1759770597981,14.32124205,4684.2,4684.1,10.758075]
[1759770598177,14.32124205,4684.2,4684.1,13.171075]
[1759770598472,14.32124205,4684.2,4684.1,6.946]
[1759770598780,14.32124205,4684.2,4684.1,24.687113]
[1759770599077,15.55124205,4684.2,4684.1,25.870752]
[1759770599251,15.55124205,4684.2,4684.1,28.087163]
[1759770599455,15.55124205,4684.2,4684.1,28.35514366]
[1759770599652,15.11864205,4684.2,4684.1,28.62910687]
[1759770599974,15.11864205,4684.2,4684.1,31.40425163]
[1759770599975,8.73993026,4684.2,4684.1,31.40425163]
[1759770600178,8.73993026,4684.2,4684.1,32.49425163]
[1759770600346,8.73993026,4684.2,4684.1,41.35308863]
[1759770600538,9.96993026,4684.2,4684.1,41.35308863]
[1759770600738,5.96240176,4684.2,4684.1,41.35308863]
[1759770601644,3.59121847,4684.2,4684.1,41.35308863]
[1759770601972,1.23,4685.8,4684.2,3.57554387]
[1759770602172,1.23,4685.8,4685.2,0.6336]
[1759770602344,1.23,4685.8,4685.4,3.0336]
[1759770602544,1.23,4685.8,4685.6,2.4]
[1759770602774,1.23,4685.8,4685.7,33.850734]
[1759770602943,1.23,4685.8,4685.7,34.813]
[1759770603140,1.6727,4685.8,4685.7,34.813]
[1759770603444,2.46,4685.8,4685.7,4.813]
[1759770603657,2.46,4685.8,4685.7,2.4]
[1759770603879,2.9027,4685.8,4685.7,31.698513]
[1759770604086,2.9027,4685.8,4685.7,34.813]
[1759770604285,2.46,4685.8,4685.7,34.813]
[1759770604585,2.46,4685.8,4685.7,35.08098066]
[1759770604888,3.69,4685.8,4685.7,35.35494387]
[1759770605089,3.69,4685.8,4685.7,35.98854387]
[1759770605289,3.69,4685.8,4685.7,36.42074387]
[1759770605588,3.69,4685.8,4685.7,38.55489671]
[1759770605961,3.69,4685.8,4685.7,35.98854387]
[1759770606166,4.92,4685.8,4685.7,35.98854387]
[1759770606367,4.92,4685.8,4685.7,36.20244387]
[1759770606569,4.92,4685.8,4685.7,36.09494387]
[1759770607390,4.92,4685.8,4685.7,38.31094387]
[1759770607612,6.15,4685.8,4685.7,38.74153016]
[1759770608895,6.152,4685.8,4685.7,38.74153016]
[1759770609101,7.382,4685.8,4685.7,38.74153016]
[1759770609896,7.382,4685.8,4685.7,34.11253016]
[1759770610107,7.382,4685.8,4685.7,37.83396695]
[1759770610596,8.612,4685.8,4685.7,37.83396695]
[1759770610799,8.612,4685.8,4685.7,39.17373016]
[1759770611364,8.612,4685.8,4685.7,33.47893016]
[1759770611694,8.612,4685.8,4685.7,37.56598629]
[1759770611898,9.842,4685.8,4685.7,37.56598629]
[1759770612500,9.842,4685.8,4685.7,37.83396695]
[1759770612685,9.842,4685.8,4685.7,8.10793016]
[1759770612889,9.842,4685.8,4685.7,8.74799775]
[1759770613202,11.072,4685.8,4685.7,8.74799775]
[1759770613368,11.072,4685.8,4685.7,38.74799775]
[1759770614620,12.302,4685.8,4685.7,38.74799775]
[1759770615893,13.532,4685.8,4685.7,38.74799775]
[1759770617287,14.762,4685.8,4685.7,38.74799775]
[1759770618582,15.992,4685.8,4685.7,38.74799775]
[1759770618787,15.992,4685.8,4685.7,8.74799775]
[1759770619402,15.992,4685.8,4685.7,38.74799775]
[1759770620011,17.222,4685.8,4685.7,40.88215059]
[1759770620411,17.222,4685.8,4685.7,39.18019775]
[1759770620601,17.222,4685.8,4685.7,38.74799775]
[1759770621404,18.452,4685.8,4685.7,38.74799775]
[1759770622896,18.452,4685.8,4685.7,8.74799775]
[1759770623099,19.682,4685.8,4685.7,8.74799775]
[1759770623708,19.682,4685.8,4685.7,38.74799775]
[1759770623906,19.682,4685.8,4685.7,8.74799775]
[1759770624107,19.682,4685.8,4685.7,40.88215059]
[1759770624420,20.912,4685.8,4685.7,38.74799775]
[1759770624618,20.912,4685.8,4685.7,40.88215059]
[1759770624947,20.912,4685.8,4685.7,41.40935059]
[1759770625095,14.53328821,4685.8,4685.7,41.94795059]
[1759770625727,15.76328821,4685.8,4685.7,42.40487853]
[1759770625923,11.65858737,4685.8,4685.7,42.40487853]
[1759770626230,11.21934119,4685.8,4685.7,42.40487853]
[1759770626829,11.21934119,4685.8,4685.7,37.77587853]
[1759770627317,12.44934119,4685.8,4685.7,42.40487853]
[1759770627722,12.45134119,4685.8,4685.7,42.40487853]
[1759770628018,8.11381717,4685.8,4685.7,42.40487853]
[1759770628536,8.11381717,4685.8,4685.7,37.77587853]
[1759770628740,9.34381717,4685.8,4685.7,34.99562569]
[1759770628943,9.34381717,4685.8,4685.7,38.36763454]
[1759770630142,11.01651717,4685.8,4685.7,11.77907854]
[1759770630327,11.01651717,4685.8,4685.7,9.11152988]
[1759770630328,10.57381717,4685.8,4685.7,9.11152988]
[1759770630525,10.57381717,4685.8,4685.7,11.51152988]
[1759770631102,10.57381717,4685.8,4685.7,11.77951054]
[1759770631307,11.80381717,4685.8,4685.7,35.72004825]
[1759770631725,11.80381717,4685.8,4685.7,35.99401146]
[1759770632834,13.03381717,4685.8,4685.7,35.99401146]
[1759770633231,13.03381717,4685.8,4685.7,23.53347346]
[1759770633431,13.03381717,4685.8,4685.7,27.88851025]
[1759770633633,13.03381717,4685.8,4685.7,28.16247346]
[1759770634233,14.26381717,4685.8,4685.7,30.05591303]
[1759770634437,14.26381717,4685.8,4685.7,40.10445103]
[1759770635122,14.71511717,4685.8,4685.7,33.58201146]
[1759770635447,14.26381717,4685.8,4685.7,28.02212425]
[1759770635641,15.49381717,4685.8,4685.7,27.02549725]
[1759770636351,15.94901717,4685.8,4685.7,21.58163125]
[1759770637143,17.17901717,4685.8,4685.7,21.58163125]
[1759770637327,17.17901717,4685.8,4685.7,29.07807725]
[1759770637918,16.72381717,4685.8,4685.7,28.58631325]
[1759770638259,17.17901717,4685.8,4685.7,27.42261525]
[1759770638457,17.17901717,4685.8,4685.7,18.60141525]
[1759770638458,18.40901717,4685.8,4685.7,18.60141525]
[1759770639312,18.40901717,4685.8,4685.7,21.35554025]
[1759770639865,19.63901717,4685.8,4685.7,21.35554025]
[1759770640547,19.63901717,4685.8,4685.7,20.95056225]
[1759770641145,20.86901717,4685.8,4685.7,20.95056225]
[1759770641323,20.86901717,4685.8,4685.7,13.97947025]
[1759770641648,20.86901717,4685.8,4685.7,9.88965925]
[1759770642142,23.00583779,4685.8,4685.7,3.30804825]
[1759770642456,23.00583779,4685.8,4685.7,26.11691266]
[1759770642457,23.78063779,4685.8,4685.7,26.11691266]
[1759770642744,22.09901717,4685.8,4685.7,17.92524244]
[1759770643044,22.09901717,4685.8,4685.7,17.51004944]
[1759770643449,21.64381717,4685.8,4685.7,27.30656944]
[1759770643612,21.64381717,4685.8,4685.7,19.86040144]
[1759770643817,23.32901717,4685.8,4685.7,17.06501744]
[1759770644014,23.32901717,4685.8,4685.7,15.67091744]
[1759770644239,23.32901717,4685.8,4685.7,14.87363744]
[1759770644438,23.32901717,4685.8,4685.7,5.72011244]
[1759770644636,23.32901717,4685.8,4685.7,11.16129244]
[1759770644823,23.32901717,4685.8,4685.7,13.29656444]
[1759770645214,24.55901717,4685.8,4685.7,13.29656444]
[1759770645751,24.10381717,4685.8,4685.7,24.20794744]
[1759770646224,24.10381717,4685.8,4685.7,24.48191065]
[1759770646724,25.33381717,4685.8,4685.7,35.99407565]
[1759770647125,25.33381717,4685.8,4685.7,36.43847565]
[1759770648252,26.56381717,4685.8,4685.7,36.43847565]
[1759770648543,26.56381717,4685.8,4685.7,6.43847565]
[1759770648748,26.56381717,4685.8,4685.7,36.43847565]
[1759770649524,27.79381717,4685.8,4685.7,36.43847565]
[1759770650119,27.79381717,4685.8,4685.7,35.99407565]
[1759770650352,27.79381717,4685.8,4685.7,36.43847565]
[1759770651054,29.02381717,4685.8,4685.7,36.43847565]
[1759770652141,29.02381717,4685.8,4685.7,38.57262849]
[1759770652459,30.25381717,4685.8,4685.7,3.08097678]
[1759770652641,30.70901717,4685.8,4685.7,2.422289]
[1759770653020,2.13415284,4685.7,4685.6,0.001]
[1759770653223,2.13415284,4685.7,4685.6,2.42]
[1759770653224,2.13682062,4685.7,4685.6,2.42]
[1759770653425,2.59202062,4685.7,4685.6,9.95521]
[1759770653620,3.82202062,4685.7,4685.6,14.197656]
[1759770653853,3.82202062,4685.7,4685.6,5.98738]
[1759770654062,3.82202062,4685.7,4685.6,8.38738]
[1759770654524,1.23,4685.7,4685.6,5.98738]
[1759770654724,1.23,4685.7,4685.6,11.23660266]
[1759770654952,1.6852,4685.7,4685.6,15.07310266]
[1759770655254,2.46,4685.7,4685.6,15.07310266]
[1759770655850,2.46,4685.7,4685.6,5.08798066]
[1759770656040,3.00142439,4685.7,4685.6,5.08798066]
[1759770656539,3.45662439,4685.7,4685.6,5.08798066]
[1759770656740,4.23142439,4685.7,4685.6,5.08798066]
[1759770657158,4.23142439,4685.7,4685.6,25.34228266]
[1759770657362,4.23142439,4685.7,4685.6,27.69251166]
[1759770657363,3.69,4685.7,4685.6,27.69251166]
[1759770657863,3.69,4685.7,4685.6,26.90915466]
[1759770658062,4.92,4685.7,4685.6,26.90915466]
[1759770658362,4.92,4685.7,4685.6,27.62751787]
[1759770658548,4.92,4685.7,4685.6,27.18411787]
[1759770658766,4.92,4685.7,4685.6,26.87733987]
[1759770658968,4.92,4685.7,4685.6,9.41203966]
[1759770659470,6.15,4685.7,4685.6,6.99203966]
[1759770659638,6.15,4685.7,4685.6,9.145059]
[1759770659842,6.15,4685.7,4685.6,14.316262]
[1759770660072,8.28682062,4685.7,4685.6,11.895262]
[1759770660289,8.74202062,4685.7,4685.6,3.193015]
[1759770660491,8.28682062,4685.7,4685.6,5.615015]
[1759770660787,9.97202062,4685.7,4685.6,13.214818]
[1759770660945,9.97202062,4685.7,4685.6,12.554482]
[1759770661767,9.97202062,4685.7,4685.6,4.823]
[1759770662475,10.74682062,4685.7,4685.6,5.09098066]
[1759770662773,11.20202062,4685.7,4685.6,4.823]
[1759770663176,11.20202062,4685.7,4685.6,16.958391]
[1759770663389,11.20202062,4685.7,4685.6,20.241845]
[1759770663556,11.20202062,4685.7,4685.6,16.97972]
[1759770663756,12.43202062,4685.7,4685.6,13.493433]
[1759770664085,12.43202062,4685.7,4685.6,12.470746]
[1759770664290,11.97682062,4685.7,4685.6,12.470746]
[1759770664693,12.08322062,4685.7,4685.6,12.470746]
[1759770664986,12.55112062,4685.7,4685.6,12.470746]
[1759770665146,13.78112062,4685.7,4685.6,17.426228]
[1759770665477,13.31322062,4685.7,4685.6,18.623521]
[1759770666059,13.78112062,4685.7,4685.6,12.885053]
[1759770666259,13.78112062,4685.7,4685.6,7.631825]
[1759770666453,13.78112062,4685.7,4685.6,10.054825]
[1759770666652,15.01112062,4685.7,4685.6,10.054825]
[1759770666970,17.14527346,4685.7,4685.6,10.054825]
[1759770667171,15.01112062,4685.7,4685.6,7.631825]
[1759770667349,15.01112062,4685.7,4685.6,10.053825]
[1759770667679,14.54322062,4685.7,4685.6,10.053825]
[1759770668060,15.77322062,4685.7,4685.6,10.053825]
[1759770668665,15.77322062,4685.7,4685.6,30.457082]
[1759770668871,15.77322062,4685.7,4685.6,25.191306]
[1759770669076,15.77322062,4685.7,4685.6,22.505812]
[1759770669275,16.24112062,4685.7,4685.6,10.998434]
[1759770669478,17.47112062,4685.7,4685.6,10.520043]
[1759770669778,17.47112062,4685.7,4685.6,10.441636]
[1759770669989,19.60527346,4685.7,4685.6,2.423]
[1759770670152,19.60527346,4685.7,4685.6,0.001]
[1759770670461,17.47112062,4685.7,4685.6,2.423]
[1759770670849,18.70112062,4685.7,4685.6,2.423]
[1759770671176,15.99,4685.7,4685.6,24.05628966]
[1759770671477,15.99,4685.7,4685.6,21.76090066]
[1759770672180,15.99,4685.7,4685.6,35.80084387]
[1759770672486,17.22,4685.7,4685.6,35.80084387]
[1759770673388,17.22,4685.7,4685.6,36.43444387]
[1759770673999,18.45,4685.7,4685.6,36.43444387]
[1759770675063,18.45,4685.7,4685.6,38.56864226]
[1759770675264,12.23816958,4685.7,4685.6,40.46208183]
[1759770675689,12.23816958,4685.7,4685.6,38.56864226]
[1759770675863,12.23816958,4685.7,4685.6,38.7960952]
[1759770676069,4.79633916,4685.7,4685.6,38.7960952]
[1759770676703,6.02633916,4685.7,4685.6,38.7960952]
[1759770677297,30.25381717,4685.8,4685.7,35.70969671]
[1759770677522,30.25381717,4685.8,4685.7,36.37304965]
[1759770677828,28.83832591,4685.8,4685.7,36.37304965]
[1759770678016,30.06832591,4685.8,4685.7,36.37304965]
[1759770678398,30.06832591,4685.8,4685.7,38.59004965]
[1759770678726,30.06832591,4685.8,4685.7,41.01204965]
[1759770679109,30.06832591,4685.8,4685.7,40.78459671]
[1759770679516,31.29832591,4685.8,4685.7,40.78459671]
[1759770680535,31.29832591,4685.8,4685.7,41.42459193]
[1759770680716,32.52832591,4685.8,4685.7,41.42459193]
[1759770681028,32.52832591,4685.8,4685.7,41.53099193]
[1759770682324,33.75832591,4685.8,4685.7,41.53099193]
[1759770684239,34.98832591,4685.8,4685.7,41.53099193]
[1759770684795,27.54649549,4685.8,4685.7,41.53099193]
[1759770686023,28.77649549,4685.8,4685.7,41.53099193]
[1759770687626,30.00649549,4685.8,4685.7,41.53099193]
[1759770688543,30.00649549,4685.8,4685.7,43.41730825]
[1759770688911,30.00649549,4685.8,4685.7,41.52799193]
[1759770689124,31.23649549,4685.8,4685.7,43.41409389]
[1759770690447,32.46649549,4685.8,4685.7,43.41409389]
[1759770690640,32.46649549,4685.8,4685.7,38.14449389]
[1759770690938,32.46649549,4685.8,4685.7,42.34459389]
[1759770691115,32.46649549,4685.8,4685.7,37.70859389]
[1759770691432,32.46649549,4685.8,4685.7,42.78049389]
[1759770691628,32.46649549,4685.8,4685.7,37.70859389]
[1759770691932,33.69649549,4685.8,4685.7,37.43463068]
[1759770692131,33.69649549,4685.8,4685.7,35.54852872]
[1759770692428,33.69649549,4685.8,4685.7,42.07063068]
[1759770693215,34.92649549,4685.8,4685.7,42.07063068]
[1759770693411,34.92649549,4685.8,4685.7,35.43522684]
[1759770693641,35.35409549,4685.8,4685.7,35.96812488]
[1759770693945,35.35409549,4685.8,4685.7,33.41437588]
[1759770694153,35.35409549,4685.8,4685.7,37.96752872]
[1759770694451,35.35409549,4685.8,4685.7,33.43337588]
[1759770694655,36.15649549,4685.8,4685.7,37.96752872]
[1759770694807,36.15649549,4685.8,4685.7,38.24149193]
[1759770695007,36.15649549,4685.8,4685.7,38.69509193]
[1759770695219,36.15649549,4685.8,4685.7,36.10733909]
[1759770695420,36.15649549,4685.8,4685.7,35.82249193]
[1759770695653,36.15649549,4685.8,4685.7,40.45749193]
[1759770695831,36.15649549,4685.8,4685.7,40.91289193]
[1759770696033,37.38649549,4685.8,4685.7,40.91289193]
[1759770697456,37.38649549,4685.8,4685.7,42.79899389]
[1759770697633,38.61649549,4685.8,4685.7,40.91289193]
[1759770697815,38.61649549,4685.8,4685.7,40.45749193]
[1759770698019,38.61649549,4685.8,4685.7,36.27789193]
[1759770698216,38.61649549,4685.8,4685.7,43.4357428]
[1759770698416,38.61649549,4685.8,4685.7,41.54649193]
[1759770699144,39.84649549,4685.8,4685.7,41.54649193]
[1759770700414,41.07649549,4685.8,4685.7,41.54649193]
[1759770701721,42.30649549,4685.8,4685.7,44.2027354]
[1759770702418,38.27941874,4685.8,4685.7,41.54649193]
[1759770702619,38.28141874,4685.8,4685.7,41.54649193]
[1759770702814,38.28141874,4685.8,4685.7,11.54649193]
[1759770703019,38.28141874,4685.8,4685.7,44.19920775]
[1759770703333,39.51141874,4685.8,4685.7,44.19920775]
[1759770703530,39.49311874,4685.8,4685.7,44.19920775]
[1759770703853,38.95837474,4685.8,4685.7,44.19920775]
[1759770704655,40.18837474,4685.8,4685.7,41.54649193]
[1759770705343,40.18837474,4685.8,4685.7,42.82649193]
[1759770705533,40.18837474,4685.8,4685.7,41.54649193]
[1759770705932,41.41837474,4685.8,4685.7,41.54649193]
[1759770706252,41.41837474,4685.8,4685.7,41.09109193]
[1759770706956,41.31233374,4685.8,4685.7,41.09109193]
[1759770707157,42.51482374,4685.8,4685.7,41.09109193]
[1759770707359,42.49775174,4685.8,4685.7,35.82249193]
[1759770707548,43.54835796,4685.8,4685.7,12.48133122]
[1759770707750,42.96915174,4685.8,4685.7,14.89933122]
[1759770707946,42.96915174,4685.8,4685.7,40.07612872]
[1759770708564,43.72775174,4685.8,4685.7,40.07612872]
[1759770708855,43.72775174,4685.8,4685.7,40.98369193]
[1759770709076,43.72775174,4685.8,4685.7,41.43909193]
[1759770709245,39.51979438,4685.8,4685.7,41.43909193]
[1759770710075,40.74979438,4685.8,4685.7,41.43909193]
[1759770711457,41.97979438,4685.8,4685.7,41.43909193]
[1759770712733,43.20979438,4685.8,4685.7,41.43909193]
[1759770712928,43.20979438,4685.8,4685.7,40.98369193]
[1759770713248,43.20979438,4685.8,4685.7,41.43909193]
[1759770714232,44.43979438,4685.8,4685.7,36.80509193]
[1759770714732,44.43979438,4685.8,4685.7,41.43909193]
[1759770715363,26.03337214,4685.8,4685.7,42.71909193]
[1759770715539,1.029892,4686.9,4685.9,0.6336]
[1759770715738,1.029892,4686.9,4686.8,2.13365195]
[1759770716071,1.029892,4686.9,4686.8,12.26057451]
[1759770716274,1.029892,4686.9,4686.8,16.61022646]
[1759770716436,1.029892,4686.9,4686.8,17.25008381]
[1759770717180,2.259892,4686.9,4686.8,17.25008381]
[1759770717482,2.259892,4686.9,4686.8,17.52404702]
[1759770717640,2.259892,4686.9,4686.8,17.63044702]
[1759770718436,3.489892,4686.9,4686.8,17.63044702]
[1759770720260,4.719892,4686.9,4686.8,17.63044702]
[1759770721647,5.949892,4686.9,4686.8,17.63044702]
[1759770721848,5.951892,4686.9,4686.8,17.63044702]
[1759770723238,7.181892,4686.9,4686.8,15.49679507]
[1759770723438,7.181892,4686.9,4686.8,10.58883186]
[1759770723673,7.631992,4686.9,4686.8,13.00783186]
[1759770724057,7.631992,4686.9,4686.8,10.87783186]
[1759770724366,7.631992,4686.9,4686.8,5.85106886]
[1759770724559,8.861992,4686.9,4686.8,10.87783186]
[1759770725639,8.411892,4686.9,4686.8,13.01148381]
[1759770725851,8.861992,4686.9,4686.8,10.87783186]
[1759770726138,9.641892,4686.9,4686.8,10.87783186]
[1759770727147,10.091992,4686.9,4686.8,10.87783186]
[1759770727447,10.091992,4686.9,4686.8,8.45883186]
[1759770727649,11.321992,4686.9,4686.8,8.47783186]
[1759770727850,12.4541912,4686.9,4686.8,8.47783186]
[1759770728071,12.4541912,4686.9,4686.8,3.34972635]
[1759770728247,12.5605912,4686.9,4686.8,2.421]
[1759770728874,13.7905912,4686.9,4686.8,4.821]
[1759770729037,13.7905912,4686.9,4686.8,9.847763]
[1759770730354,15.0205912,4686.9,4686.8,9.847763]
[1759770731552,16.2505912,4686.9,4686.8,9.847763]
[1759770733391,17.4805912,4686.9,4686.8,9.847763]
[1759770733885,17.4805912,4686.9,4686.8,2.4]
[1759770734195,2.13384147,4686.4,4685.9,0.6401468]
[1759770734362,2.79737317,4686.3,4686.0,5.175636]
[1759770734559,2.79737317,4686.3,4686.0,2.42]
[1759770734777,0.1064,4686.1,4686.0,4.82]
[1759770734987,0.5565,4686.1,4686.0,9.846763]
[1759770735383,0.5565,4686.1,4685.6,0.001]
[1759770735568,0.59989248,4686.0,4685.7,2.421]
[1759770735771,2.13415131,4685.8,4685.7,2.421]
[1759770736093,2.69065131,4685.8,4685.7,2.421]
[1759770736671,0.5565,4685.8,4685.7,2.421]
[1759770736874,1.22194411,4685.8,4685.7,2.421]
[1759770737091,0.5565,4685.8,4685.7,2.421]
[1759770737290,1.7865,4685.8,4685.7,2.421]
[1759770737504,1.7865,4685.8,4685.6,0.001]
[1759770737710,2.58425284,4685.7,4685.6,0.001]
[1759770737906,3.21785284,4685.7,4685.6,0.001]
[1759770738212,4.00968541,4685.7,4685.6,2.297]
[1759770738712,5.23968541,4685.7,4685.6,2.422]
[1759770738908,2.47193257,4685.7,4685.6,2.422]
[1759770739074,2.47193257,4685.7,4685.6,0.001]
[1759770739276,5.23968541,4685.7,4685.6,0.001]
[1759770739808,5.23968541,4685.7,4685.6,0.306]
[1759770739996,6.46968541,4685.7,4685.6,0.001]
[1759770741389,7.69968541,4685.7,4685.6,0.001]
[1759770741587,2.76784394,4685.5,4685.2,0.001]
[1759770741818,2.24073504,4685.3,4685.2,0.001]
[1759770741983,0.1064,4685.3,4685.2,0.001]
[1759770742309,2.58443504,4685.3,4685.2,2.423]
[1759770742882,3.81443504,4685.3,4685.2,0.001]
[1759770743084,2.3137,4685.3,4685.2,2.052]
[1759770743286,5.17073433,4685.3,4685.2,2.052]
[1759770743481,5.17073433,4685.3,4685.2,0.001]
[1759770744295,6.40073433,4685.3,4685.2,0.001]
[1759770744516,5.31703433,4685.3,4685.2,0.001]
[1759770744817,5.76713433,4685.3,4685.2,0.001]
[1759770745818,6.99713433,4685.3,4685.2,0.001]
[1759770746311,6.54703433,4685.3,4685.2,0.001]
[1759770747225,7.77703433,4685.3,4685.2,0.001]
[1759770747426,5.64269929,4685.3,4685.2,0.001]
[1759770747720,7.77703433,4685.3,4685.2,0.001]
[1759770748120,8.22713433,4685.3,4685.2,0.001]
[1759770748620,9.45713433,4685.3,4685.2,0.001]
[1759770748994,10.09073433,4685.3,4685.2,0.001]
[1759770749900,11.32073433,4685.3,4685.2,0.001]
[1759770750723,10.87063433,4685.3,4685.2,0.001]
[1759770751019,11.32073433,4685.3,4685.2,0.001]
[1759770751198,12.55073433,4685.3,4685.2,0.001]
[1759770752227,12.20703433,4685.3,4685.2,0.001]
[1759770752597,13.43703433,4685.3,4685.2,0.001]
[1759770753326,13.89563433,4685.3,4685.2,0.001]
[1759770753527,13.43703433,4685.3,4685.2,0.001]
[1759770753896,14.66703433,4685.3,4685.2,0.001]
[1759770754395,14.03343433,4685.3,4685.2,0.001]
[1759770755327,15.26343433,4685.3,4685.2,0.001]
[1759770756196,12.3,4685.3,4685.2,0.001]
[1759770756407,15.77073504,4685.3,4685.2,0.4476]
[1759770756609,15.77073504,4685.3,4685.2,0.001]
[1759770756610,16.40433504,4685.3,4685.2,0.001]
[1759770756922,16.83793504,4685.3,4685.2,2.422]
[1759770757236,18.97475566,4685.3,4685.2,2.422]
[1759770757603,23.00183836,4685.3,4685.2,2.422]
[1759770758008,24.23183836,4685.3,4685.2,2.422]
[1759770759005,24.66543836,4685.3,4685.2,2.422]
[1759770759205,25.89543836,4685.3,4685.2,2.422]
[1759770759846,20.36755566,4685.3,4685.2,2.422]
[1759770760628,21.59755566,4685.3,4685.2,2.422]
[1759770761339,19.46073504,4685.3,4685.2,2.8686]
[1759770761640,17.3264,4685.3,4685.2,2.8686]
[1759770761939,17.3264,4685.3,4685.2,5.2686]
[1759770762241,18.5564,4685.3,4685.2,5.2686]
[1759770763535,19.7864,4685.3,4685.2,5.2686]
[1759770763750,21.92073504,4685.3,4685.2,5.2686]
[1759770763936,19.7864,4685.3,4685.2,5.2686]
[1759770764514,19.68,4685.3,4685.2,5.2686]
[1759770764714,19.7864,4685.3,4685.2,5.2686]
[1759770764913,21.0164,4685.3,4685.2,5.2686]